Workbook

Sheet nota integrativa
A11: COMUNE DI RANZANICO
A12: Provincia di Bergamo
A21: NOTA INTEGRATIVA AL BILANCIO DI
A22: PREVISIONE 2019-2021
A33: Premessa
A36: La presente nota integrativa è prevista dal punto 9.11 del “Principio contabile applicato concernente la programmazione del bilancio” allegato al D. Lgs. 118 del 23.06.2011, come modificato dal D. Lgs. n. 126 del 10.08.2014.
A37: Il contenuto della nota integrativa è determinato dal principio sopra citato ed ha la funzione di integrare i dati quantitativi esposti negli schemi di bilancio al fine di rendere più chiara e significativa la lettura dello stesso.
A38: Il presente documento ha essenzialmente tre funzioni:
A39: • Analitico-descrittiva, che dà l’illustrazione di dati che per la loro sinteticità non sono in grado di essere pienamente compresi;
A40: • Informativa, che prevede l’indicazione di ulteriori dati che non possono essere inseriti nei documenti quantitativo-contabili;
A41: • Esplicativa, che si traduce nell’evidenziazione e nella motivazione delle ipotesi assunte e dei criteri di valutazione adottati e che sono alla base della determinazione dei valori di bilancio.
A43: 1) Criteri di valutazione adottati per la formulazione delle previsioni, con particolare riferimento agli stanziamenti riguardanti gli accantonamenti per le spese potenziali e al fondo crediti di dubbia esigibilità, dando illustrazione dei crediti per i quali non è previsto l’accantonamento a tale fondo.
A45: Le previsioni del bilancio sono state effettuate in base ai principi allegati al D.Lgs. 118/2011 ed ai risultati delle precedenti gestioni di bilancio.
A46: Non sono stati effettuati accantonamenti per spese potenziali poiché, al momento della stesura del bilancio, non si ravvisano segnali o indicazioni che possano far ritenere effettiva questa eventualità. Il fondo crediti di dubbia esigibilità è stato costituito accantonando una quota delle entrate accertate per competenza ed oggetto di analisi secondo le disposizioni dei nuovi principi contabili.
A47: Oltre l’accantonamento previsto per l’indennità di fine mandato del Sindaco, istituito per ciascun anno del triennio considerato secondo il principio cantabile applicato concernente la contabilità finanziaria di cui all’all.4/2 del D.Lgs.118/2001, non si è ravvisata la necessità di istituire ulteriori accantonamenti in sede di bilancio di previsione, anche per evitare di distrarre risorse alla gestione. Di seguito sono analizzate le principali voci di entrata:
A49: RIEPILOGO GENERALE ENTRATE PER TITOLI
A50: TITOLO | C50: DENOMINAZIONE
F51: PREV.DEF. o REND. | G51: PREVISIONI ANNO 2019 | H51: PREVISIONI ANNO 2020 | I51: PREVISIONI ANNO 2021
C52: Fondo pluriennale vincolato per spese correnti | F52: =[5]PAREGGIO!B4 -> 14547.83 | G52: =[5]PAREGGIO!C4 -> 0 | H52: =[5]PAREGGIO!D4 -> 0 | I52: =[5]PAREGGIO!E4 -> 0
C53: Fondo pluriennale vincolato per spese in conto capitale | F53: =[5]PAREGGIO!B5 -> 21501.68 | G53: =[5]PAREGGIO!C5 -> 0 | H53: =[5]PAREGGIO!D5 -> 0 | I53: =[5]PAREGGIO!E5 -> 0
C54: Utilizzo avanzo di Amministrazione | F54: =[5]PAREGGIO!B3 -> 146400 | G54: =[5]PAREGGIO!C3 -> 0 | H54: =[5]PAREGGIO!D3 -> 0 | I54: =[5]PAREGGIO!E3 -> 0
C55: - di cui avanzo vincolato utilizzato anticipatamente | F55: 0 | G55: 0 | H55: 0 | I55: 0
A56: 1 | C56: Entrate correnti di natura tributaria, contributiva e perequativa | F56: =[5]PAREGGIO!B7 -> 850500 | G56: =[5]PAREGGIO!C7 -> 848250 | H56: =[5]PAREGGIO!D7 -> 848250 | I56: =[5]PAREGGIO!E7 -> 837750
A57: 2 | C57: Trasferimenti correnti | F57: =[5]PAREGGIO!B8 -> 25020 | G57: =[5]PAREGGIO!C8 -> 24750 | H57: =[5]PAREGGIO!D8 -> 24600 | I57: =[5]PAREGGIO!E8 -> 21800
A58: 3 | C58: Entrate extratributarie | F58: =[5]PAREGGIO!B9 -> 199830 | G58: =[5]PAREGGIO!C9 -> 221400 | H58: =[5]PAREGGIO!D9 -> 191400 | I58: =[5]PAREGGIO!E9 -> 167650
A59: 4 | C59: Entrate in conto capitale | F59: =[5]PAREGGIO!B10 -> 78000 | G59: =[5]PAREGGIO!C10 -> 144800 | H59: =[5]PAREGGIO!D10 -> 70000 | I59: =[5]PAREGGIO!E10 -> 70000
A60: 5 | C60: Entrate da riduzione di attività finanziarie | F60: =[5]PAREGGIO!B11 -> 0 | G60: =[5]PAREGGIO!C11 -> 0 | H60: =[5]PAREGGIO!D11 -> 0 | I60: =[5]PAREGGIO!E11 -> 0
A61: 6 | C61: Accensione prestiti | F61: =[5]PAREGGIO!B12 -> 0 | G61: =[5]PAREGGIO!C12 -> 0 | H61: =[5]PAREGGIO!D12 -> 0 | I61: =[5]PAREGGIO!E12 -> 0
A62: 7 | C62: Anticipazioni da istituto tesoriere/cassiere | F62: =[5]PAREGGIO!B13 -> 0 | G62: =[5]PAREGGIO!C13 -> 0 | H62: =[5]PAREGGIO!D13 -> 0 | I62: =[5]PAREGGIO!E13 -> 0
A63: 9 | C63: Entrate per conto terzi e partite di giro | F63: =[5]PAREGGIO!B14 -> 414750 | G63: =[5]PAREGGIO!C14 -> 415000 | H63: =[5]PAREGGIO!D14 -> 415000 | I63: =[5]PAREGGIO!E14 -> 415000
C64: Totale generale delle entrate | F64: =SUM(F52:F63) -> 1750549.51 | G64: =SUM(G52:G63) -> 1654200 | H64: =SUM(H52:H63) -> 1549250 | I64: =SUM(I52:I63) -> 1512200 | L64: =+[5]PAREGGIO!B26-'nota integrativa'!F64 -> 0
A66: AVANZO DI AMMINISTRAZIONE:
A68: Viene applicato al bilancio di previsione l'importo di €.30.000, quale quota parte dell'avanzo di amministrazione destinato ad investimenti determinato dalle risultanze del conto consuntivo in approvazione da parte del Consiglio Comunale.
A69: a norma dell'art. 187, comma 2, lett.d) del D.lgs. 267/2000, così come determinato con deliberazione del C.C. n….. Del……… di approvazione del rendiconto 20163; | K69: ??
A71: Titolo I - Entrate correnti di natura tributaria, contributiva e perequativa
C73: Tipologie di entrata | F73: Anno 2019 | G73: Anno 2020 | H73: Anno 2021
C74: Imposte tasse e proventi assimilati | F74: =[5]ENTRATA!I24 -> 848250 | G74: =[5]ENTRATA!J24 -> 848250 | H74: =[5]ENTRATA!K24 -> 837750
C75: Fondi perequativi da amministrazioni centrali | F75: =[5]ENTRATA!I25 -> 0 | G75: =[5]ENTRATA!J28 -> 0 | H75: =[5]ENTRATA!K28 -> 0
E76: Totale titolo I | F76: =SUM(F74:F75) -> 848250 | G76: =SUM(G74:G75) -> 848250 | H76: =SUM(H74:H75) -> 837750
A78: Imposta municipale propria (Imu):
A79: L’imposta municipale propria è confermata nella misura approvata per l’esercizio 2018 con le seguenti aliquote:
A80: • aliquota 0,40% per l’unità immobiliare adibita ad abitazione principale del soggetto passivo classificata nelle categorie catastali A/1, A/8 e A/9 nonché per le relative pertinenze, per unità immobiliari di cui siano proprietari o usufruttuari anziani o disabili che acquisiscono la residenza in istituti di ricovero o sanitari a seguito di ricovero permanente, purchè la stessa non sia data in locazione, per unità immobiliari possedute dai cittadini italiani residenti all’estero a titolo di proprietà o di usufrutto in Italia, a condizione che non risulti locata;
A81: • aliquota 10,6% per aree edificabili;
A82: • aliquota 10,6% tutti gli altri fabbricati;
A84: Addizionale comunale all’ irpef.
A85: E’ confermata nella misura vigente nel 2018 (0,4%).
A87: Tari
A88: E’ intenzione dell’Amministrazione comunale mantenere invariate le tariffe vigenti.
A90: Titolo II – Trasferimenti correnti
C92: Tipologie di entrata | F92: =+F73 -> Anno 2019 | G92: =+G73 -> Anno 2020 | H92: Anno 2021
C93: Trasferimenti correnti da Amministrazioni pubbliche | F93: =[5]ENTRATA!I41+[5]ENTRATA!I48 -> 24750 | G93: =[5]ENTRATA!J41+[5]ENTRATA!J48 -> 24600 | H93: =[5]ENTRATA!K41+[5]ENTRATA!K48 -> 21800
C94: Trasferimenti correnti da famiglie | F94: 0 | G94: 0 | H94: 0
C95: Trasferimenti correnti da imprese | F95: 0 | G95: 0 | H95: 0
E96: Totale titolo II | F96: =SUM(F93:F95) -> 24750 | G96: =SUM(G93:G95) -> 24600 | H96: =SUM(H93:H95) -> 21800
A98: I trasferimenti correnti riguardano le quote di compartecipazione alle spese correnti sostenute dall'ente da parte principalmente di altri enti della pubblica amministrazione quali Stato, Regioni , Comuni e Province oltre che per funzioni proprie per funzioni delegate e nel triennio non si prevedono scostamenti rilevanti rispetto al trend-storico.
A100: Titolo III - Entrate extratributarie
C102: Tipologie di entrata | F102: =+F92 -> Anno 2019 | G102: =+G92 -> Anno 2020 | H102: Anno 2021
C103: Vendita di beni e servizi e proventi derivanti dalla gestione dei beni | F103: =[5]ENTRATA!I70+[5]ENTRATA!I80 -> 116700 | G103: =[5]ENTRATA!J70+[5]ENTRATA!J80 -> 116700 | H103: =[5]ENTRATA!K70+[5]ENTRATA!K80 -> 110550
C104: Proventi derivanti dall'attività di controllo e repressione delle irregolarità e degli illeciti | F104: =[5]ENTRATA!I87 -> 93000 | G104: =[5]ENTRATA!J87 -> 63000 | H104: =[5]ENTRATA!K87 -> 48000
C105: Interessi attivi | F105: =[5]ENTRATA!I93 -> 100 | G105: =[5]ENTRATA!J93 -> 100 | H105: =[5]ENTRATA!K93 -> 100
C106: Rimborsi e altre entrate correnti | F106: =[5]ENTRATA!I105+[5]ENTRATA!I114+[5]ENTRATA!I118+[5]ENTRATA!I98 -> 11600 | G106: =[5]ENTRATA!J105+[5]ENTRATA!J114+[5]ENTRATA!J118+[5]ENTRATA!J98 -> 11600 | H106: =[5]ENTRATA!K105+[5]ENTRATA!K114+[5]ENTRATA!K118+[5]ENTRATA!K98 -> 9000
E107: Totale titolo III | F107: =SUM(F103:F106) -> 221400 | G107: =SUM(G103:G106) -> 191400 | H107: =SUM(H103:H106) -> 167650
A109: La quantificazione di queste entrate fa riferimento a leggi e regolamenti, oltre che all’andamento degli esercizi precedenti. Le voci principali sono:
A110: • Diritti di segreteria;
A111: • Sanzioni amministrative per violazione al codice della strada;
A112: • Rimborsi scolastici;
A113: • Affitti attivi;
A114: • Rimborsi per i servizi cimiteriali.
A116: Titolo IV – Entrate in conto capitale
A118: Questa tipologia di entrata finanzia le spese di investimento e comprende:
G119: 2019 | H119: 2020 | I119: 2021
A120: =[5]ENTRATA!E145 -> Proventi da concessioni edilizie e sanzioni urbanistiche | G120: =[5]ENTRATA!I145 -> 80000 | H120: =[5]ENTRATA!J145 -> 65000 | I120: =[5]ENTRATA!K145 -> 65000
A121: =+[5]ENTRATA!E128 -> CONTRIBUTO STATALE PER INVESTIMENTI DI MESSA SICUREZZA IMMOBILI (L.Stabilità 2019) | G121: =+[5]ENTRATA!I128 -> 40000 | H121: =+[5]ENTRATA!J128 -> 0 | I121: =+[5]ENTRATA!K128 -> 0
A122: =+[5]ENTRATA!E129 -> CONTRIBUTO REG.LE EFFICIENTAMENTO ENERGETICO EDIF.VIA G.MARCONI | G122: =+[5]ENTRATA!I129 -> 19800 | H122: =+[5]ENTRATA!J131 -> 0 | I122: =+[5]ENTRATA!K131 -> 0
A123: =[5]ENTRATA!E132 -> CONCORSO DA COMUNI ASSOCIATI PER "PROGETTO SICUREZZA" | G123: =[5]ENTRATA!I132 -> 0 | H123: =[5]ENTRATA!J132 -> 0 | I123: =[5]ENTRATA!K132 -> 0
A124: =[5]ENTRATA!E150 -> FONDO AREE VERDI ex L.R. 12/2005 e s.m.i. | G124: =[5]ENTRATA!I150 -> 5000 | H124: =[5]ENTRATA!J150 -> 5000 | I124: =[5]ENTRATA!K150 -> 5000
A125: =[5]ENTRATA!E151 -> TOTALE | G125: =SUM(G120:G124) -> 144800 | H125: =SUM(H120:H124) -> 70000 | I125: =SUM(I120:I124) -> 70000
A127: Titolo V – Entrate da riduzione di attività finanziarie
A129: Nessuna entrata prevista.
A131: Titolo VI – Accensione di prestiti
A133: Nessuna entrata prevista.
A135: Titolo VII – Anticipazione da Istituto tesoriere/cassiere
A137: Data l'ottima liquidità e la gestione ottimale dei flussi di cassa, non è previsto il ricorso all'anticipazione di tesoreria.
A139: Titolo XI – Entrate per conto terzi e partite di giro
A141: Di pari importo in entrata e in spesa esse comprendono entrate per partite di giro e per conto terzi.
A144: SPESA
A145: RIEPILOGO GENERALE SPESE PER TITOLI
A147: TITOLO | C147: DENOMINAZIONE | F147: PREV.DEF. o REND. | G147: PREVISIONI ANNO 2019 | H147: PREVISIONI ANNO 2020 | I147: PREVISIONI ANNO 2021
C149: DISAVANZO DI AMMINISTRAZIONE | F149: 0 | G149: 0 | H149: 0 | I149: 0
A150: 1 | C150: SPESE CORRENTI | D150: previsione di competenza | F150: =[5]PAREGGIO!B19 -> 1058267.83 | G150: =[5]PAREGGIO!C19 -> 1062750 | H150: =[5]PAREGGIO!D19 -> 1037250 | I150: =[5]PAREGGIO!E19 -> 998850
D151: di cui già impegnato* | G151: =+[5]Relaz.Revisore!F141 -> 198159.5 | H151: =+[5]Relaz.Revisore!G141 -> 123405.52 | I151: =+[5]Relaz.Revisore!H141 -> 110149.01
D152: di cui fondo pluriennale vincolato | F152: =[5]PAREGGIO!B4 -> 14547.83 | G152: =[5]PAREGGIO!C4 -> 0 | H152: =[5]PAREGGIO!D4 -> 0 | I152: =[5]PAREGGIO!E4 -> 0
A154: 2 | C154: SPESE IN CONTO CAPITALE | D154: previsione di competenza | F154: =[5]PAREGGIO!B20 -> 245901.68 | G154: =[5]PAREGGIO!C20 -> 144800 | H154: =[5]PAREGGIO!D20 -> 70000 | I154: =[5]PAREGGIO!E20 -> 70000
D155: di cui già impegnato* | G155: 4963.88 | H155: 4963.88 | I155: 0
D156: di cui fondo pluriennale vincolato | H156: =[5]PAREGGIO!D5 -> 0 | I156: =[5]PAREGGIO!E5 -> 0
A158: 3 | C158: SPESE PER INCREMENTO DI ATT. FINANZIARIE | D158: previsione di competenza | F158: =[5]PAREGGIO!B21 -> 0 | G158: =[5]PAREGGIO!C21 -> 0 | H158: =[5]PAREGGIO!D21 -> 0 | I158: =[5]PAREGGIO!E21 -> 0
D159: di cui già impegnato* | G159: 0 | H159: 0 | I159: 0
D160: di cui fondo pluriennale vincolato | F160: 0 | G160: 0 | H160: 0 | I160: 0
A162: 4 | C162: RIMBORSO DI PRESTITI | D162: previsione di competenza | F162: =[5]PAREGGIO!B22 -> 31630 | G162: =[5]PAREGGIO!C22 -> 31650 | H162: =[5]PAREGGIO!D22 -> 27000 | I162: =[5]PAREGGIO!E22 -> 28350
D163: di cui già impegnato* | G163: 0 | H163: 0 | I163: 0
D164: di cui fondo pluriennale vincolato | F164: 0 | G164: 0 | H164: 0 | I164: 0
A166: 5 | C166: CHIUSURA ANTICIPAZIONI DA ISTITUTO TESORIERE/ CASSIERE | D166: previsione di competenza | F166: =[5]PAREGGIO!B23 -> 0 | G166: =[5]PAREGGIO!C23 -> 0 | H166: =[5]PAREGGIO!D23 -> 0 | I166: =[5]PAREGGIO!E23 -> 0
D167: di cui già impegnato* | G167: 0 | H167: 0 | I167: 0
D168: di cui fondo pluriennale vincolato | F168: 0 | G168: 0 | H168: 0 | I168: 0
A170: 7 | C170: SPESE PER CONTO TERZI E PARTITE DI GIRO | D170: previsione di competenza | F170: =[5]PAREGGIO!B25 -> 414750 | G170: =[5]PAREGGIO!C25 -> 415000 | H170: =[5]PAREGGIO!D25 -> 415000 | I170: =[5]PAREGGIO!E25 -> 415000
D171: di cui già impegnato* | G171: 0 | H171: 0 | I171: 0
D172: di cui fondo pluriennale vincolato | F172: 0 | G172: 0 | H172: 0 | I172: 0
C174: TOTALE TITOLI | D174: previsione di competenza | F174: =+F150+F154+F158+F162+F166+F170 -> 1750549.51 | G174: =+G150+G154+G158+G162+G166+G170 -> 1654200 | H174: 1549250 | I174: 1512200
D175: di cui già impegnato* | F175: =+F151+F155+F159+F163+F167+F171 -> 0 | G175: =+G151+G155+G159+G163+G167+G171 -> 203123.38 | H175: 128369.4 | I175: 110149.01
A177: TITOLO I – Spese correnti
A179: Di seguito sono riepilogate le principali voci di spesa corrente suddivise in macroaggregati:
C181: Macroaggregati di spesa | F181: =+F102 -> Anno 2019 | G181: =+G102 -> Anno 2020 | H181: =+H102 -> Anno 2021
C182: Redditi da lavoro dipendente | F182: =+[5]SPESA!J39+[5]SPESA!J116+[5]SPESA!J139+[5]SPESA!J170+[5]SPESA!J325 -> 252350 | G182: =+[5]SPESA!K39+[5]SPESA!K116+[5]SPESA!K139+[5]SPESA!K170+[5]SPESA!K325 -> 252150 | H182: =+[5]SPESA!L39+[5]SPESA!L116+[5]SPESA!L139+[5]SPESA!L170+[5]SPESA!L325 -> 220550
C183: Imposte e tasse a carico dell'ente | F183: =+[5]SPESA!J13+[5]SPESA!J43+[5]SPESA!J98+[5]SPESA!J120+[5]SPESA!J143+[5]SPESA!J174+[5]SPESA!J329+[5]SPESA!J244 -> 21850 | G183: =+[5]SPESA!K13+[5]SPESA!K43+[5]SPESA!K98+[5]SPESA!K120+[5]SPESA!K143+[5]SPESA!K174+[5]SPESA!K329+[5]SPESA!K244 -> 21300 | H183: =+[5]SPESA!L13+[5]SPESA!L43+[5]SPESA!L98+[5]SPESA!L120+[5]SPESA!L143+[5]SPESA!L174+[5]SPESA!L329+[5]SPESA!L244 -> 19100
C184: Acquisto di beni e servizi | F184: =+[5]SPESA!J20+[5]SPESA!J62+[5]SPESA!J78+[5]SPESA!J88+[5]SPESA!J105+[5]SPESA!J125+[5]SPESA!J148+[5]SPESA!J184+[5]SPESA!J194+[5]SPESA!J209+[5]SPESA!J251+[5]SPESA!J267+[5]SPESA!J281+[5]SPESA!J295+[5]SPESA!J302+[5]SPESA!J314+[5]SPESA!J341+[5]SPESA!J378+[5]SPESA!J401+[5]SPESA!J425 -> 414580 | G184: =+[5]SPESA!K20+[5]SPESA!K62+[5]SPESA!K78+[5]SPESA!K88+[5]SPESA!K105+[5]SPESA!K125+[5]SPESA!K148+[5]SPESA!K184+[5]SPESA!K194+[5]SPESA!K209+[5]SPESA!K251+[5]SPESA!K267+[5]SPESA!K281+[5]SPESA!K295+[5]SPESA!K302+[5]SPESA!K314+[5]SPESA!K341+[5]SPESA!K378+[5]SPESA!K401+[5]SPESA!K425 -> 391410 | H184: =+[5]SPESA!L20+[5]SPESA!L62+[5]SPESA!L78+[5]SPESA!L88+[5]SPESA!L105+[5]SPESA!L125+[5]SPESA!L148+[5]SPESA!L184+[5]SPESA!L194+[5]SPESA!L209+[5]SPESA!L251+[5]SPESA!L267+[5]SPESA!L281+[5]SPESA!L295+[5]SPESA!L302+[5]SPESA!L314+[5]SPESA!L341+[5]SPESA!L378+[5]SPESA!L401+[5]SPESA!L425 -> 389560
C185: Trasferimenti correnti | F185: =+[5]SPESA!J24+[5]SPESA!J67+[5]SPESA!J130+[5]SPESA!J153+[5]SPESA!J159+[5]SPESA!J218+[5]SPESA!J228+[5]SPESA!J234+[5]SPESA!J256+[5]SPESA!J271+[5]SPESA!J286+[5]SPESA!J305+[5]SPESA!J355+[5]SPESA!J372+[5]SPESA!J382+[5]SPESA!J388+[5]SPESA!J395+[5]SPESA!J405+[5]SPESA!J411+[5]SPESA!J417 -> 301930 | G185: =+[5]SPESA!K24+[5]SPESA!K67+[5]SPESA!K130+[5]SPESA!K153+[5]SPESA!K159+[5]SPESA!K218+[5]SPESA!K228+[5]SPESA!K234+[5]SPESA!K256+[5]SPESA!K271+[5]SPESA!K286+[5]SPESA!K305+[5]SPESA!K355+[5]SPESA!K372+[5]SPESA!K382+[5]SPESA!K388+[5]SPESA!K395+[5]SPESA!K405+[5]SPESA!K411+[5]SPESA!K417 -> 301750 | H185: =+[5]SPESA!L24+[5]SPESA!L67+[5]SPESA!L130+[5]SPESA!L153+[5]SPESA!L159+[5]SPESA!L218+[5]SPESA!L228+[5]SPESA!L234+[5]SPESA!L256+[5]SPESA!L271+[5]SPESA!L286+[5]SPESA!L305+[5]SPESA!L355+[5]SPESA!L372+[5]SPESA!L382+[5]SPESA!L388+[5]SPESA!L395+[5]SPESA!L405+[5]SPESA!L411+[5]SPESA!L417 -> 302550
C186: Interessi passivi | F186: =+[5]SPESA!J456+[5]SPESA!J645 -> 20750 | G186: =+[5]SPESA!K456+[5]SPESA!K645 -> 19250 | H186: =+[5]SPESA!L456+[5]SPESA!L645 -> 17950
C187: Rimborsi e poste correttive delle entrate | F187: =+[5]SPESA!J92 -> 3000 | G187: =+[5]SPESA!K92 -> 2000 | H187: =+[5]SPESA!L92 -> 2000
C188: Altre spese correnti | F188: =+[5]SPESA!J29+[5]SPESA!J71+[5]SPESA!J82+[5]SPESA!J109+[5]SPESA!J188+[5]SPESA!J198+[5]SPESA!J345+[5]SPESA!J359+[5]SPESA!J436+[5]SPESA!J442 -> 48290 | G188: =+[5]SPESA!K29+[5]SPESA!K71+[5]SPESA!K82+[5]SPESA!K109+[5]SPESA!K188+[5]SPESA!K198+[5]SPESA!K345+[5]SPESA!K359+[5]SPESA!K436+[5]SPESA!K442 -> 49390 | H188: =+[5]SPESA!L29+[5]SPESA!L71+[5]SPESA!L82+[5]SPESA!L109+[5]SPESA!L188+[5]SPESA!L198+[5]SPESA!L345+[5]SPESA!L359+[5]SPESA!L436+[5]SPESA!L442 -> 47140
C189: Totale titolo I | D189: 2697924 | E189: 2514246 | F189: =SUM(F182:F188) -> 1062750 | G189: =SUM(G182:G188) -> 1037250 | H189: =SUM(H182:H188) -> 998850
A191: Nella voce “redditi da lavoro dipendente” sono compresi anche gli oneri previdenziali ed assistenziali a carico dell’ente. Tale macroaggregato è stato quantificato per il biennio successivo, proiettando la situazione attuale.
A193: Tra le “imposte e tasse a carico dell’ente” la somma maggiore è rappresentata dall’Irap a carico dell’ente.
A195: Gli “acquisti dei beni e servizi” comprendono le previsioni di spesa necessarie a garantire il regolare funzionamento e la buona gestione dei servizi.
A197: Tra i “trasferimenti correnti” sono classificati i contributi che l’amministrazione riconosce annualmente a terzi, siano essi privati cittadini o associazioni, oltre alle quote per i servizi in gestione associata.
A199: Gli “interessi passivi”, sono rappresentati da interessi passivi su mutui in ammortamento nel triennio.
A201: Tra i “rimborsi e le poste correttive delle entrate” sono compresi gli sgravi e le restituzioni di tributi.
A203: Le “altre spese correnti” comprendono tutte quelle voci che non trovano collocazione nei precedenti macroaggregati, quali le assicurazioni, la liquidazione dell’iva a debito, il fondo crediti di dubbia esigibilità e il fondo di riserva.
A205: Titolo II – Spese in conto capitale
C207: Macroaggregati di spesa | F207: =F181 -> Anno 2019 | G207: =G181 -> Anno 2020 | H207: =H181 -> Anno 2021
C208: Investimenti fissi lordi e acquisto di terreni | F208: =+[5]SPESA!J473+[5]SPESA!J482+[5]SPESA!J494+[5]SPESA!J508+[5]SPESA!J519+[5]SPESA!J529+[5]SPESA!J538+[5]SPESA!J553+[5]SPESA!J559+[5]SPESA!J576+[5]SPESA!J586+[5]SPESA!J598+[5]SPESA!J606 -> 140800 | G208: =+[5]SPESA!K473+[5]SPESA!K482+[5]SPESA!K494+[5]SPESA!K508+[5]SPESA!K519+[5]SPESA!K529+[5]SPESA!K538+[5]SPESA!K553+[5]SPESA!K559+[5]SPESA!K576+[5]SPESA!K586+[5]SPESA!K598 -> 66000 | H208: =+[5]SPESA!L473+[5]SPESA!L482+[5]SPESA!L494+[5]SPESA!L508+[5]SPESA!L519+[5]SPESA!L529+[5]SPESA!L538+[5]SPESA!L553+[5]SPESA!L559+[5]SPESA!L576+[5]SPESA!L586+[5]SPESA!L598 -> 66000
C209: Contributi agli investimenti | F209: =+[5]SPESA!J505+[5]SPESA!J566+[5]SPESA!J592 -> 4000 | G209: =+[5]SPESA!K505+[5]SPESA!K566+[5]SPESA!K592 -> 4000 | H209: =+[5]SPESA!L505+[5]SPESA!L566+[5]SPESA!L592 -> 4000
C210: Altri trasferimenti in conto capitale | F210: 0 | G210: 0 | H210: 0
C211: Altre spese in conto capitale | F211: =+[5]SPESA!J544 -> 0 | G211: =+[5]SPESA!K544 -> 0 | H211: =+[5]SPESA!L544 -> 0
C212: Totale titolo II | F212: =SUM(F208:F211) -> 144800 | G212: =SUM(G208:G211) -> 70000 | H212: =SUM(H208:H211) -> 70000
A214: Nel macroaggregato “Investimenti fissi lordi e acquisto di terreni” sono classificate le spese relative alla realizzazione di nuove opere e agli interventi di manutenzione straordinaria
A216: Titolo III – Spese per incremento di attività finanziarie
A218: In bilancio non emergono valori per questo titolo
A220: Titolo IV – Rimborso di prestiti
C222: Macroaggregati di spesa | F222: =F207 -> Anno 2019 | G222: =G207 -> Anno 2020 | H222: =H207 -> Anno 2021
C223: Rimborso prestiti a breve termine | F223: 0 | G223: 0 | H223: 0
C224: Rimborso mutui ed altri finanziamenti a medio lungo termine | F224: =+[5]SPESA!J630 -> 31650 | G224: =+[5]SPESA!K630 -> 27000 | H224: =+[5]SPESA!L630 -> 28350
E225: Totale titolo IV | F225: =SUM(F223:F224) -> 31650 | G225: =SUM(G223:G224) -> 27000 | H225: =SUM(H223:H224) -> 28350
A227: Nel macroaggregato “Rimborso mutui ed altri finanziamenti a medio lungo termine” sono comprese le quote capitale dei mutui in ammortamento nel triennio considerato e la quota capitale del prestito concesso da Regione Lombardia.
A229: Titolo V – Restituzione anticipazione istituto tesoriere/cassiere
A231: In questo titolo trova iscrizione la restituzione dell’anticipazione di tesoreria corrispondente al titolo VII di entrata.
C233: Macroaggregati di spesa | F233: =+F222 -> Anno 2019 | G233: =G222 -> Anno 2020 | H233: =H222 -> Anno 2021
C234: Restituzione anticipazione di cassa | F234: 0 | G234: 0 | H234: 0
C235: Totale titolo V | F235: =SUM(F234) -> 0 | G235: =SUM(G234) -> 0 | H235: =SUM(H234) -> 0
A237: Titolo VII – Spese per conto terzi e partite di giro.
C239: Macroaggregati di spesa | F239: =F233 -> Anno 2019 | G239: =G233 -> Anno 2020 | H239: =H233 -> Anno 2021
C240: Uscite per partite di giro | F240: =+[5]SPESA!J670 -> 362500 | G240: =+[5]SPESA!K670 -> 362500 | H240: =+[5]SPESA!L670 -> 362500
C241: Uscite per conto terzi | F241: =+[5]SPESA!J678 -> 52500 | G241: =+[5]SPESA!K678 -> 52500 | H241: =+[5]SPESA!L678 -> 52500
C242: Totale titolo VII | F242: =SUM(F240:F241) -> 415000 | G242: =SUM(G240:G241) -> 415000 | H242: =SUM(H240:H241) -> 415000
A244: Le spese per conto di terzi e le partite di giro sono state previste a pareggio con le relative entrate di cui al titolo IX.
A246: Fondo crediti di dubbia esigibilità e fondo di riserva di cassa
A248: La determinazione dell’accantonamento al fondo crediti di dubbia esigibilità è stata preceduta da un’attenta analisi delle entrate dell’ente per l’individuazione delle tipologie stanziate che possono dar luogo alla formazione di crediti di dubbia e difficile esazione. Le poste di entrata ritenute ricadenti in dette tipologie sono:
A250: Sono state poi confrontate le varie metodologie di calcolo previste dai principi contabili e individuata quella della media ponderata (metodo B), in base al principio della prudenza, trovando il complemento a 100 della percentuale ottenuta, si è poi provveduto al calcolo dell’accantonamento obbligatorio per ogni singolo anno.
F252: =F239 -> Anno 2019 | G252: =G239 -> Anno 2020 | H252: =H239 -> Anno 2021
C253: - Recupero evasione tributaria | F253: =6264.84+119 -> 6383.84 | G253: =7001.88+133 -> 7134.88 | H253: =6175.2+84 -> 6259.2
C254: - Tassa Rifiuti | F254: 9805.6 | G254: 10959.2 | H254: 11536
C255: - Sanzioni Amministrative | F255: 158.1 | G255: 170.81 | H255: 133.3
C256: - Affitti da beni immobili
C257: Totale FCDE minimo da stanziare | F257: =SUM(F253:F256) -> 16347.54 | G257: =SUM(G253:G256) -> 18264.89 | H257: =SUM(H253:H256) -> 17928.5
C258: Totale FCDE previsto nel bilancio | F258: =+[5]SPESA!J441 -> 17000 | G258: =+[5]SPESA!K441 -> 18900 | H258: =+[5]SPESA!L441 -> 18500
A260: E' stanziata nel capitolo relativo al fondo di riserva ordinario e del fondo crediti di dubbia esigibilità la previsione di cassa e costituisce il fondo di riserva per le autorizzazioni di cassa ex art. 166 del TUEL.
A262: 2) Elenco analitico degli utilizzi delle quote vincolate e accantonate del risultato di amministrazione presunto, distinguendo i vincoli derivanti dalla legge e dai principi contabili, dai trasferimenti, da mutui e altri finanziamenti, vincoli formalmente attribuiti dall'ente.
A264: Con la predisposizione del bilancio di previsione è necessario procedere alla determinazione del risultato di amministrazione presunto che consiste in una previsione ragionevole del risultato di amministrazione dell’esercizio precedente, formulata in base alla situazione dei conti alla data di elaborazione del bilancio di previsione.
A265: Al presunto risultato di amministrazione sono stati applicati i vincoli derivanti dalla gestione precedente.
A266: Si riporta la tabella dimostrativa del risultato di amministrazione presunto allegata al bilancio:
A268: Determinazione del risultato di amministrazione presunto al 31/12
B270: 1) Determinazione del risultato di amministrazione presunto al 31/12/2018:
B271: + Risultato di amministrazione iniziale 2018 | I271: 368271.59
B272: + Fondo pluriennale vincolato iniziale dell'esercizio 2018 | I272: =+[5]PAREGGIO!B4+[5]PAREGGIO!B5 -> 36049.51
B273: + Entrate già accertate nell'esercizio 2018 | I273: 1276250.21
B274: - Uscite già impegnate nell'esercizio 2018 | I274: 1377976.8
B275: +/- Variazione dei residui attivi già verificatesi nel 2018 | I275: =2685.67-299.77 -> 2385.9
B276: -/+ Variazione dei residui passivi già verificatesi nel 2018 | I276: 118.78
B277: = Risultato di amministrazione dell'esercizio 2018 e alla data di redazione del bilancio dell'anno 2018 | I277: =I273-I274-I275+I276+I271+I272 -> 300327.39
B278: + Entrate presunte per il restante periodo dell`esercizio 2018 | I278: 291849.79
B279: - Uscite presunte per il restante periodo dell`esercizio 2018 | I279: 357572.71
B280: +/- Variazioni dei residui attivi, presunte per il restante periodo dell`esercizio 2018 | I280: 0
B281: -/+ Variazioni dei residui passivi, presunte per il restante periodo dell`esercizio 2018 | I281: 0
B282: - Fondo pluriennale vincolato finale presunto dell'esercizio 2018 | I282: 0
B283: A) Risultato di amministrazione presunto al 31/12/2018 | I283: =I277+I278-I279+I280-I281-I282 -> 234604.47
B284: 2) Composizione del risultato di amministrazione presunto al 31/12/2018:
B285: Parte accantonata
C286: Fondo crediti di dubbia esigibilità al 31/12/2018 | I286: =+[5]SPESA!I442+10926.06 -> 25926.06
C287: Altri accantonamenti | I287: =4712.06+1301.47 -> 6013.53
H288: B) Totale parte accantonata | I288: =SUM(I286:I287) -> 31939.59
B289: Parte vincolata
C290: Vincoli derivanti da Leggi e principi contabili | I290: 9000
C291: Vincoli derivanti da trasferimenti | I291: 0
C292: Vincoli derivanti dalla contrazione di mutui | I292: 0
C293: Vincoli formalmente attribuiti dall'ente | I293: 0
C294: Altri vincoli da specificare | I294: 0
H295: C) Totale parte vincolata | I295: =SUM(I290:I294) -> 9000
B296: Parte destinata agli investimenti | I296: 0
H297: D) Totale destinata agli investimenti | I297: =23847.11+21501.68+146400-110459.59 -> 81289.2
H298: E) Totale parte disponibile ( E=A-B-C-D ) | I298: =I283-I288-I295-I297 -> 112375.68
A301: Fondo pluriennale vincolato
... 34 more rows
